bitfinex-derivatives/quotes_SOLF0:USTF0_20241216
["timestamp","ask_amount","ask_price","bid_price","bid_amount"]
[1734352365294,4.432,215.71,215.65,7.27384439]
[1734352365295,2.3192,215.66,215.65,7.27384439]
[1734352365812,2.44,215.72,215.65,7.27384439]
[1734352366002,2.44,215.72,215.63,2.3195]
[1734352367091,8.0925942,215.72,215.63,2.3195]
[1734352367294,11.3620405,215.76,215.64,2.3194]
[1734352367497,11.3620405,215.76,215.62,11.3620405]
[1734352367498,2.44,215.75,215.62,11.3620405]
[1734352367990,2.3189,215.7,215.65,2.3193]
[1734352368798,2.3189,215.69,215.65,2.3193]
[1734352369699,2.44,215.75,215.62,11.3620405]
[1734352369904,2.3188,215.71,215.66,2.3191]
[1734352370595,2.3188,215.71,215.67,2.3191]
[1734352370791,11.3620405,215.76,215.67,2.3191]
[1734352371000,13.8020405,215.76,215.67,2.3191]
[1734352371494,2.3188,215.71,215.67,2.3191]
[1734352371896,8.64002666,215.78,215.66,2.44]
[1734352372197,11.3620405,215.77,215.66,2.44]
[1734352372500,2.319,215.68,215.66,2.44]
[1734352374203,2.319,215.68,215.64,2.3194]
[1734352375097,13.8020405,215.74,215.63,2.44]
[1734352375294,2.3191,215.67,215.63,4.7595]
[1734352376001,13.8020405,215.74,215.65,5.48194137]
[1734352377602,2.3191,215.68,215.65,5.48194137]
[1734352378594,13.8020405,215.74,215.61,2.3197]
[1734352378792,11.3620405,215.71,215.6,2.44]
[1734352378995,2.9692,215.7,215.59,2.44]
[1734352379196,2.44,215.69,215.6,5.14626133]
[1734352379397,2.44,215.69,215.59,2.3199]
[1734352379596,2.44,215.69,215.6,5.14723355]
[1734352379791,2.44,215.69,215.59,2.3199]
[1734352379994,2.44,215.69,215.6,5.14691497]
[1734352380203,2.44,215.69,215.59,2.3199]
[1734352380396,2.44,215.69,215.6,2.3199]
[1734352380903,2.3197,215.62,215.59,7.94051399]
[1734352383798,2.3197,215.62,215.6,2.3199]
[1734352384507,2.3197,215.62,215.59,5.62061399]
[1734352384702,2.3197,215.62,215.59,7.94051399]
[1734352385010,2.3197,215.62,215.6,5.15542792]
[1734352385206,2.3197,215.62,215.59,7.94051399]
[1734352385504,2.3197,215.62,215.6,5.15543888]
[1734352385709,2.44,215.69,215.59,5.62061399]
[1734352385911,2.44,215.69,215.6,5.15774415]
[1734352386210,2.44,215.69,215.61,5.15774415]
[1734352386407,2.44,215.69,215.59,5.62061399]
[1734352386708,2.44,215.69,215.6,5.16226845]
[1734352387004,2.44,215.69,215.61,5.16226845]
[1734352387200,2.44,215.69,215.59,2.3199]
[1734352387508,2.44,215.69,215.6,5.16246744]
[1734352387804,2.44,215.69,215.61,5.16246744]
[1734352388003,7.27397727,215.69,215.62,12.43644471]
[1734352388201,7.27397727,215.69,215.64,7.27397727]
[1734352388410,4.4681,215.7,215.64,7.27397727]
[1734352388600,2.9692,215.7,215.66,7.27397727]
[1734352389211,2.319,215.69,215.66,7.27397727]
[1734352389508,2.319,215.69,215.65,9.59327727]
[1734352389698,2.319,215.69,215.66,5.16332838]
[1734352389901,2.319,215.69,215.65,9.59327727]
[1734352390103,2.319,215.68,215.66,5.16326252]
[1734352390309,2.319,215.68,215.65,9.59327727]
[1734352390510,2.319,215.68,215.66,5.16374689]
[1734352390701,10.24317727,215.7,215.63,2.44]
[1734352390901,2.3194,215.65,215.64,5.16646716]
[1734352391103,2.3194,215.65,215.61,9.59367727]
[1734352391304,2.3194,215.65,215.62,5.16795462]
[1734352391514,2.3194,215.65,215.63,5.16795462]
[1734352391733,2.3195,215.64,215.61,7.27397727]
[1734352391932,7.27397727,215.66,215.59,7.27397727]
[1734352392229,7.27397727,215.66,215.6,5.16909596]
[1734352392425,7.27397727,215.66,215.61,5.16909596]
[1734352392631,2.3197,215.62,215.59,7.27397727]
[1734352392932,1.4537,215.69,215.61,7.27397727]
[1734352393136,1.4537,215.69,215.62,7.48899806]
[1734352393137,2.3193,215.66,215.62,7.48899806]
[1734352393339,2.3193,215.66,215.63,5.16939806]
[1734352393523,2.3193,215.66,215.62,2.3196]
[1734352393724,2.3193,215.66,215.63,5.16889129]
[1734352393930,2.3193,215.66,215.62,2.3196]
[1734352394124,2.3193,215.66,215.63,5.16917204]
[1734352394334,2.3193,215.66,215.62,2.3196]
[1734352394528,2.3193,215.66,215.63,5.16903482]
[1734352394729,2.3193,215.66,215.62,9.59357727]
[1734352394923,2.3193,215.66,215.63,5.16933677]
[1734352395125,2.3191,215.67,215.64,5.16901369]
[1734352395326,2.3191,215.67,215.63,2.3195]
[1734352395530,2.3191,215.67,215.64,5.1689983]
[1734352395739,2.3191,215.67,215.64,9.59337727]
[1734352395935,2.9692,215.7,215.64,9.59337727]
[1734352395936,2.319,215.68,215.65,5.16781735]
[1734352396236,2.319,215.68,215.64,9.59337727]
[1734352396440,2.319,215.68,215.65,5.1678232]
[1734352396740,2.319,215.68,215.64,9.59337727]
[1734352396942,2.3192,215.67,215.65,5.16764568]
[1734352397130,2.3192,215.67,215.63,4.7595]
[1734352397131,2.3192,215.67,215.63,12.03347727]
[1734352397346,2.3192,215.67,215.64,5.16807602]
[1734352397531,2.3192,215.67,215.65,5.16807602]
[1734352397733,2.3192,215.67,215.63,12.03347727]
[1734352397930,2.3192,215.67,215.64,5.16751425]
[1734352398135,2.3192,215.67,215.65,5.16751425]
[1734352398439,2.3192,215.67,215.63,12.03347727]
[1734352398633,2.3192,215.66,215.64,5.16761668]
[1734352398824,2.3192,215.66,215.65,5.16761668]
[1734352399526,7.27397727,215.67,215.61,9.59367727]
[1734352399725,2.3195,215.64,215.62,13.43621459]
[1734352399921,2.3195,215.64,215.63,5.16961245]
[1734352400213,2.3195,215.64,215.61,9.59367727]
[1734352400411,2.3195,215.64,215.62,5.17025204]
[1734352400617,2.3195,215.64,215.63,5.17025204]
[1734352400813,2.3195,215.64,215.63,5.17036325]
[1734352401814,4.6351,215.82,215.63,12.44434052]
[1734352402009,10.41017727,215.78,215.71,7.27397727]
[1734352402210,3.1362,215.78,215.73,7.27397727]
[1734352402411,3.1362,215.78,215.75,7.27397727]
[1734352402946,2.3184,215.74,215.73,7.27397727]
[1734352403107,2.3184,215.74,215.73,5.16022857]
[1734352403321,2.3184,215.74,215.71,7.27397727]
[1734352403619,2.3184,215.74,215.72,5.162016]
[1734352403937,2.3184,215.74,215.73,5.16076166]
[1734352405015,2.3184,215.74,215.69,13.7949916]
[1734352405210,3.1362,215.78,215.7,5.15963213]
[1734352405211,2.3182,215.76,215.7,5.15963213]
[1734352405412,2.3182,215.76,215.71,5.15963213]
[1734352405622,3.1362,215.78,215.72,5.15963213]
[1734352405820,3.1362,215.78,215.73,5.15772601]
[1734352406016,3.1362,215.78,215.72,11.3549916]
[1734352406315,3.1362,215.78,215.73,5.15771413]
[1734352406516,3.1362,215.78,215.72,13.6734916]
[1734352406517,5.4542,215.78,215.72,11.3549916]
[1734352406917,5.4542,215.78,215.73,5.15727335]
[1734352407116,5.4542,215.78,215.73,2.3185]
[1734352407313,2.3181,215.77,215.73,2.3185]
[1734352408620,2.3185,215.74,215.69,21.78115481]
[1734352408815,2.3185,215.74,215.7,5.15662713]
[1734352409018,2.3185,215.74,215.71,5.15662713]
[1734352409219,1.5963,215.81,215.69,21.78115481]
[1734352409412,2.3185,215.73,215.7,5.15569506]
[1734352409617,2.3185,215.73,215.69,21.78115481]
[1734352410117,2.3185,215.73,215.7,5.15641754]
[1734352410319,2.3185,215.73,215.69,21.78115481]
[1734352410620,2.42,215.79,215.7,7.47537869]
[1734352410814,1.5963,215.81,215.72,11.3549916]
[1734352411918,1.5963,215.81,215.69,5.66726321]
[1734352412214,1.5963,215.81,215.7,24.7549695]
[1734352412518,2.3185,215.74,215.71,5.15383765]
[1734352412814,2.3185,215.74,215.69,8.08726321]
[1734352413011,2.3185,215.74,215.72,5.15453181]
[1734352413215,2.3185,215.74,215.7,8.2472509]
[1734352413412,2.3185,215.74,215.71,5.15398829]
[1734352413609,2.3185,215.74,215.7,10.5660509]
[1734352413917,2.3185,215.74,215.71,5.15384239]
[1734352414117,2.3182,215.76,215.72,13.6735916]
[1734352415411,2.3186,215.72,215.7,10.6672509]
[1734352415921,12.9512916,215.81,215.7,2.42]
[1734352417017,2.3187,215.71,215.7,2.42]
[1734352417210,2.3187,215.71,215.7,7.57667925]
[1734352417711,2.3187,215.71,215.7,2.42]
[1734352417919,2.3187,215.71,215.7,7.57676457]
[1734352419016,2.3186,215.72,215.7,2.42]
[1734352420621,2.3185,215.73,215.7,2.42]
[1734352421021,12.9512916,215.81,215.7,2.42]
[1734352421022,1.5963,215.81,215.71,2.3187]
[1734352421823,1.5963,215.81,215.7,4.7388]
[1734352422521,2.3185,215.74,215.7,4.7388]
[1734352423726,1.5963,215.81,215.72,11.3549916]
[1734352423727,2.3183,215.75,215.72,11.3549916]
[1734352423917,2.3183,215.75,215.74,7.26536514]
[1734352424119,7.26536514,215.8,215.7,2.42]
[1734352424423,7.26536514,215.8,215.73,7.26536514]
[1734352424827,2.3184,215.74,215.73,7.26536514]
[1734352425126,1.5963,215.81,215.73,7.26536514]
[1734352425127,4.0163,215.81,215.73,7.26536514]
[1734352425428,4.0163,215.81,215.76,7.26536514]
[1734352425922,2.318,215.77,215.76,7.26536514]
[1734352426224,1.5963,215.81,215.76,7.26536514]
[1734352426923,2.318,215.78,215.76,7.26536514]
[1734352427224,1.5963,215.81,215.76,7.26536514]
[1734352427623,7.26536514,215.78,215.68,5.68387575]
[1734352427825,7.26536514,215.75,215.69,5.15588738]
[1734352428122,7.26536514,215.75,215.68,7.26536514]
[1734352428318,3.176,215.74,215.68,7.26536514]
[1734352429520,2.3189,215.69,215.68,7.26536514]
[1734352434234,2.3188,215.7,215.68,7.26536514]
[1734352436138,2.3192,215.67,215.63,2.3195]
[1734352436437,7.26536514,215.7,215.64,5.17418557]
[1734352436640,7.26536514,215.7,215.63,7.26536514]
[1734352436841,7.26536514,215.7,215.64,5.17598181]
[1734352437137,3.9339,215.73,215.62,7.26536514]
[1734352437138,7.26536514,215.68,215.62,7.26536514]
[1734352437334,2.3195,215.63,215.62,7.26536514]
[1734352438234,3.9339,215.73,215.62,12.443499]
[1734352438537,2.3195,215.64,215.62,7.26536514]
[1734352439738,7.26536514,215.69,215.62,7.26536514]
[1734352440236,7.26536514,215.67,215.6,7.26536514]
[1734352440532,2.42,215.68,215.61,5.18295469]
[1734352440735,7.26536514,215.64,215.57,12.92407782]
[1734352440930,7.26536514,215.64,215.52,2.42]
[1734352440931,2.42,215.64,215.58,13.47846885]
[1734352441237,2.3199,215.61,215.58,7.26536514]
[1734352441531,2.3199,215.61,215.32,220.73164611]
[1734352441532,7.26536514,215.59,215.41,15.35652174]
[1734352441734,3.0203,215.66,215.37,2.42]
[1734352441735,2.3206,215.54,215.43,5.66595316]
[1734352441941,2.42,215.58,215.43,5.66595316]
[1734352441942,7.26536514,215.5,215.44,2.3215]
[1734352442938,2.3212,215.48,215.43,15.2530183]
[1734352443439,2.3212,215.48,215.43,12.9313183]
[1734352443844,2.32,215.59,215.44,2.3215]
[1734352444031,3.0203,215.66,215.44,2.3215]
[1734352444032,11.38336736,215.54,215.44,2.3215]
[1734352444231,2.42,215.53,215.44,2.3215]
[1734352444538,11.38336736,215.54,215.43,5.66595316]
[1734352444743,2.42,215.53,215.46,2.3214]
[1734352444933,11.38336736,215.54,215.46,2.3214]
[1734352445141,2.42,215.55,215.44,11.38336736]
[1734352445335,11.38336736,215.57,215.44,11.38336736]
[1734352445336,2.42,215.56,215.44,11.38336736]
[1734352445537,2.3207,215.53,215.44,11.38336736]
[1734352446040,2.42,215.56,215.44,11.38336736]
[1734352447346,11.38336736,215.57,215.44,11.38336736]
[1734352447545,2.42,215.58,215.47,11.38336736]
[1734352447843,2.3205,215.54,215.5,2.3209]
[1734352448143,2.3205,215.54,215.47,13.80336736]
[1734352448643,11.38336736,215.63,215.5,11.38336736]
[1734352449034,2.42,215.63,215.48,4.584]
[1734352449240,2.42,215.63,215.48,7.004]
[1734352449241,2.3206,215.53,215.48,7.004]
[1734352449540,11.38336736,215.6,215.48,7.004]
[1734352449735,2.3206,215.54,215.49,2.321]
[1734352451941,2.3207,215.53,215.49,2.321]
[1734352452147,13.80336736,215.63,215.5,2.3208]
[1734352452343,2.42,215.62,215.5,11.38336736]
[1734352452745,2.3203,215.57,215.5,11.38336736]
[1734352453047,2.3203,215.57,215.52,2.3207]
[1734352453246,13.80336736,215.63,215.5,11.38336736]
[1734352453546,2.3202,215.57,215.5,11.38336736]
[1734352453742,2.3202,215.57,215.53,11.38336736]
[1734352454739,2.3201,215.58,215.54,2.3205]
[1734352454945,2.42,215.63,215.54,2.3205]
[1734352455847,2.3201,215.59,215.54,2.3205]
[1734352456241,2.42,215.63,215.54,2.3205]
[1734352456553,2.42,215.63,215.53,16.12396736]
[1734352456945,2.42,215.63,215.53,13.80336736]
[1734352457447,2.3201,215.58,215.53,13.80336736]
[1734352458155,2.42,215.63,215.53,13.80336736]
[1734352458349,2.42,215.63,215.54,2.3205]
[1734352458350,2.3202,215.57,215.54,2.3205]
[1734352458544,5.4964,215.65,215.56,11.38336736]
[1734352458746,2.3198,215.62,215.53,2.42]
[1734352458948,2.3198,215.62,215.57,11.38336736]
[1734352459747,2.3195,215.64,215.6,11.38336736]
[1734352460253,2.3195,215.64,215.6,13.70316736]
[1734352462955,2.3195,215.64,215.6,11.38336736]
[1734352463150,18.28716736,215.72,215.6,11.38336736]
[1734352463351,2.3193,215.66,215.6,11.38336736]
[1734352463751,2.3193,215.66,215.62,2.3196]
[1734352464149,2.3185,215.74,215.63,11.38336736]
[1734352464355,1.4858,215.81,215.69,2.3188]
[1734352464551,5.4916167,215.78,215.67,11.38336736]
[1734352464752,4.0088,215.77,215.66,2.42]
[1734352464948,11.38336736,215.75,215.66,2.42]
[1734352465249,11.38336736,215.75,215.62,2.42]
[1734352465250,2.3192,215.67,215.62,2.42]
[1734352466354,2.3192,215.67,215.63,2.3195]
[1734352466561,2.3192,215.67,215.54,5.67988797]
[1734352466562,2.42,215.7,215.57,2.42]
[1734352466856,1.5254,215.69,215.57,2.42]
[1734352467252,11.38336736,215.65,215.54,5.67988797]
[1734352467453,3.1704,215.64,215.54,5.67988797]
[1734352467654,3.1704,215.64,215.52,2.42]
[1734352467854,2.3203,215.56,215.52,2.42]
[1734352468161,3.1704,215.64,215.52,2.42]
[1734352468357,11.38336736,215.59,215.46,2.42]
[1734352468555,13.80336736,215.59,215.47,5.08848889]
[1734352468860,2.3203,215.56,215.5,2.3208]
[1734352469064,2.3203,215.56,215.49,11.38336736]
[1734352469859,2.3203,215.56,215.5,2.3209]
[1734352470255,2.3203,215.56,215.49,11.38336736]
[1734352470454,2.42,215.59,215.52,2.3207]
[1734352470956,2.42,215.59,215.52,11.38336736]
[1734352471148,5.48145457,215.63,215.54,2.3205]
[1734352471149,2.3201,215.58,215.54,2.3205]
[1734352471353,2.3201,215.58,215.52,11.38336736]
[1734352472659,2.3201,215.58,215.53,5.0967404]
[1734352472860,2.3202,215.57,215.53,2.3206]
[1734352473759,1.5254,215.69,215.52,11.38336736]
[1734352473963,2.3198,215.61,215.56,2.3203]
[1734352474156,3.9454,215.69,215.55,11.38336736]
[1734352474457,3.9454,215.69,215.51,2.42]
[1734352474458,11.38336736,215.67,215.51,2.42]
[1734352474658,11.38336736,215.64,215.52,5.09698136]
[1734352474864,2.3199,215.6,215.53,2.3206]
[1734352475162,2.42,215.63,215.53,2.3206]
[1734352475665,2.3202,215.58,215.53,2.3206]
[1734352476260,2.42,215.63,215.53,2.3206]
[1734352476663,2.9756,215.62,215.53,2.3206]
[1734352477164,2.3203,215.56,215.51,13.80336736]
[1734352477366,2.9756,215.62,215.52,5.09932048]
[1734352477566,1.5059,215.61,215.51,13.80336736]
[1734352477869,1.5059,215.61,215.52,5.10086447]
[1734352478061,1.5059,215.61,215.51,13.80336736]
[1734352478256,2.3204,215.56,215.51,16.12406736]
[1734352478768,1.5059,215.61,215.51,13.80336736]
[1734352479359,2.3206,215.54,215.51,13.80336736]
[1734352480163,1.5059,215.61,215.51,13.80336736]
[1734352480357,1.5059,215.61,215.52,5.10310552]
[1734352480558,1.5059,215.61,215.51,13.80336736]
[1734352480767,1.5059,215.61,215.52,5.10328279]
[1734352480963,1.5059,215.61,215.51,13.80336736]
[1734352481266,2.3202,215.58,215.53,2.3206]
[1734352481968,2.3202,215.57,215.53,2.3206]
[1734352482262,2.3202,215.57,215.54,11.38336736]
[1734352482467,1.5059,215.61,215.54,11.38336736]
[1734352482468,2.3201,215.59,215.54,11.38336736]
[1734352482669,1.5059,215.61,215.54,11.38336736]
[1734352483568,2.3201,215.58,215.54,13.70386736]
[1734352484469,1.5059,215.61,215.54,13.70386736]
[1734352485167,2.3201,215.58,215.54,13.70386736]
[1734352485765,2.3202,215.57,215.54,13.70386736]
[1734352485970,2.3202,215.57,215.54,11.38336736]
[1734352486168,1.5059,215.61,215.51,13.80336736]
[1734352486367,2.3206,215.54,215.52,5.10512931]
[1734352486671,2.42,215.59,215.49,2.321]
[1734352486872,2.42,215.59,215.5,5.10613621]
[1734352487070,2.42,215.59,215.49,2.321]
[1734352487370,2.42,215.59,215.5,5.10773327]
[1734352487584,2.42,215.59,215.49,2.321]
[1734352488070,2.42,215.59,215.48,11.38336736]
[1734352488273,2.42,215.59,215.5,5.1076557]
[1734352488469,2.3208,215.52,215.48,13.70456736]
[1734352488670,2.3208,215.52,215.49,5.10784231]
[1734352488970,2.3208,215.52,215.5,5.10784231]
[1734352489270,2.42,215.59,215.48,13.70456736]
[1734352489462,2.3208,215.52,215.49,5.10914855]
[1734352489667,2.3208,215.52,215.5,5.10914855]
[1734352489867,2.3208,215.52,215.48,13.70456736]
[1734352490165,2.3208,215.52,215.49,5.10918997]
[1734352490364,2.3208,215.52,215.5,5.10918997]
[1734352490565,2.3208,215.52,215.48,13.70456736]
[1734352490766,2.3208,215.52,215.49,5.10954187]
[1734352490968,2.3208,215.52,215.49,5.56687001]
[1734352491171,2.3208,215.52,215.5,5.1094701]
[1734352491369,2.3208,215.52,215.49,5.56687001]
[1734352491565,2.3208,215.52,215.5,5.10890708]
[1734352491771,2.3208,215.52,215.49,7.88787001]
[1734352491966,2.3209,215.51,215.5,5.10896937]
[1734352494377,2.3209,215.51,215.48,11.38336736]
[1734352494576,2.3209,215.51,215.49,5.11117273]
[1734352494775,2.3209,215.51,215.5,5.11117273]
[1734352495575,2.3209,215.51,215.48,11.38336736]
[1734352495877,2.3209,215.51,215.49,5.11112401]
[1734352496072,2.3209,215.51,215.48,11.38336736]
[1734352496273,2.3209,215.51,215.49,5.11128361]
[1734352496472,2.3209,215.51,215.48,11.38336736]
[1734352496675,2.3209,215.51,215.49,5.11118698]
[1734352496873,2.3209,215.51,215.48,13.70446736]
[1734352497090,2.3207,215.53,215.49,5.11078981]
[1734352497376,2.3207,215.53,215.5,7.43146186]
[1734352497571,2.3207,215.53,215.5,2.3209]
[1734352501981,2.3208,215.52,215.49,2.321]
[1734352502182,2.3208,215.52,215.51,7.28069283]
[1734352502677,1.5059,215.61,215.51,7.28069283]
[1734352502879,2.9756,215.62,215.59,7.28069283]
[1734352503179,2.32,215.6,215.59,7.28069283]
[1734352503971,2.32,215.6,215.56,11.36799897]
[1734352504383,2.32,215.6,215.57,5.1045056]
[1734352504583,2.32,215.6,215.57,2.3201]
[1734352504974,2.32,215.6,215.56,13.68829897]
[1734352505176,2.32,215.59,215.56,13.68829897]
[1734352505872,2.3199,215.6,215.57,2.3202]
[1734352506184,8.03293767,215.66,215.57,5.10560762]
[1734352506574,2.32,215.6,215.56,11.36799897]
[1734352506774,2.42,215.66,215.57,5.10742569]
[1734352507080,2.42,215.66,215.56,11.36799897]
[1734352507279,2.42,215.66,215.57,5.10698873]
[1734352507479,2.42,215.66,215.56,11.36799897]
[1734352507676,2.42,215.66,215.57,5.10778036]
[1734352507881,2.32,215.6,215.56,13.68829897]
[1734352508083,16.96533346,215.67,215.57,5.10713185]
[1734352508282,2.42,215.66,215.56,11.36799897]
[1734352508483,2.3201,215.59,215.57,5.10845863]
[1734352508786,2.3201,215.59,215.56,11.36799897]
[1734352509288,2.3201,215.59,215.57,5.10838958]
[1734352509482,2.3201,215.59,215.56,11.36799897]
[1734352509687,2.3201,215.59,215.57,5.10886175]
[1734352509881,2.3201,215.59,215.56,11.36799897]
[1734352511378,2.3201,215.59,215.57,5.11466625]
[1734352511578,2.3201,215.59,215.56,11.36799897]
[1734352511887,2.3201,215.59,215.57,5.11491769]
[1734352512088,2.3201,215.59,215.56,11.36799897]
[1734352512283,2.3201,215.59,215.57,5.11440551]
[1734352512488,2.3201,215.59,215.56,11.36799897]
[1734352512690,2.3201,215.59,215.57,5.11555553]
[1734352512988,2.3201,215.59,215.56,11.36799897]
[1734352513182,2.3201,215.59,215.57,5.11499512]
[1734352513380,2.3201,215.59,215.56,11.36799897]
[1734352513584,2.3201,215.58,215.57,5.11477514]
[1734352513987,13.78799897,215.61,215.47,19.24509263]
[1734352514187,4.5683,215.6,215.48,5.11721419]
[1734352514387,4.5683,215.6,215.49,5.11721419]
[1734352514588,4.5683,215.6,215.5,5.11721419]
[1734352514890,2.3207,215.53,215.51,5.11721419]
[1734352515086,4.5683,215.6,215.49,2.321]
[1734352515289,2.3206,215.53,215.5,5.11690681]
[1734352515489,2.3206,215.53,215.51,5.11690681]
[1734352515684,2.3206,215.53,215.52,5.11690681]
[1734352523795,2.3206,215.53,215.52,1e-08]
[1734352523984,2.3213,215.48,215.47,7.28418713]
[1734352528885,4.5683,215.6,215.47,7.28418713]
[1734352529090,4.5683,215.6,215.51,7.28418713]
[1734352529091,9.70418713,215.59,215.51,7.28418713]
[1734352529290,7.28418713,215.57,215.52,1.0]
[1734352529486,2.3206,215.53,215.52,1.0]
[1734352538900,2.3206,215.53,215.52,6.04955354]
[1734352539100,2.3206,215.53,215.52,1.0]
[1734352539502,2.3206,215.53,215.52,8.28418713]
[1734352544604,2.3206,215.53,215.52,13.33417431]
[1734352544805,2.3205,215.55,215.52,13.33417431]
[1734352545101,2.3205,215.55,215.54,7.28418713]
[1734352545507,2.3201,215.59,215.55,2.3203]
[1734352545800,2.3201,215.59,215.58,7.28418713]
[1734352546505,2.3201,215.59,215.58,12.33301822]
[1734352546808,2.3199,215.6,215.58,12.33301822]
[1734352547102,4.5112,215.66,215.58,7.28418713]
[1734352547407,4.5112,215.66,215.62,7.28418713]
[1734352547408,3.0194,215.66,215.62,7.28418713]
[1734352547606,2.3194,215.64,215.62,7.28418713]
[1734352549110,2.3193,215.66,215.62,7.28418713]
[1734352549511,2.3193,215.66,215.64,7.28418713]
[1734352549710,2.3191,215.67,215.64,7.28418713]
[1734352550114,1.4918,215.71,215.66,7.28418713]
[1734352550615,1.5731,215.74,215.7,7.28418713]
[1734352550809,2.3185,215.73,215.7,7.28418713]
[1734352551006,7.28418713,215.78,215.72,7.28418713]
[1734352551809,2.3184,215.75,215.69,2.3189]
[1734352552109,7.28418713,215.78,215.7,7.28418713]
[1734352552511,2.3186,215.73,215.7,7.28418713]
[1734352552712,2.3186,215.73,215.66,2.42]
[1734352552713,7.28418713,215.74,215.67,7.28418713]
[1734352553114,5.51617601,215.8,215.69,7.28418713]
[1734352553408,7.28418713,215.77,215.69,7.28418713]
[1734352553712,2.3188,215.71,215.69,7.28418713]
[1734352554120,7.28418713,215.75,215.69,7.28418713]
[1734352554312,2.3188,215.7,215.69,7.28418713]
[1734352554619,7.28418713,215.73,215.62,5.69160211]
[1734352554814,2.3191,215.67,215.62,5.69160211]
[1734352555019,2.3191,215.67,215.63,7.28418713]
[1734352556117,2.3193,215.66,215.63,7.28418713]
[1734352557320,7.28418713,215.71,215.63,7.28418713]
[1734352557619,2.3194,215.65,215.63,7.28418713]
[1734352558714,2.3194,215.64,215.63,7.28418713]
[1734352559108,2.3194,215.64,215.6,2.42]
[1734352559316,4.5089,215.72,215.6,9.70418713]
[1734352559317,7.28418713,215.67,215.6,9.70418713]
[1734352559511,7.28418713,215.67,215.6,7.28418713]
[1734352559719,7.28418713,215.65,215.58,7.28418713]
[1734352560018,2.42,215.68,215.54,9.70418713]
[1734352560019,7.28418713,215.61,215.54,9.70418713]
[1734352560416,2.3204,215.55,215.54,9.70418713]
[1734352560618,2.3204,215.55,215.54,7.28418713]
[1734352562045,10.32058713,215.61,215.46,1.4519]
[1734352562046,2.3206,215.53,215.52,8.28418713]
[1734352563223,2.3206,215.53,215.52,1.0]
[1734352577222,2.3206,215.53,215.52,8.28418713]
[1734352580136,2.3202,215.57,215.53,2.3206]
[1734352580426,2.3202,215.57,215.52,8.28418713]
[1734352580427,2.3202,215.57,215.56,7.28418713]
[1734352581019,2.32,215.59,215.52,1.0]
[1734352581220,7.28418713,215.6,215.53,7.28418713]
[1734352581820,2.3205,215.54,215.53,7.28418713]
[1734352585829,2.3204,215.55,215.53,7.28418713]
[1734352586025,2.42,215.6,215.54,7.28418713]
[1734352586226,2.42,215.6,215.57,7.28418713]
[1734352587024,4.6384,215.67,215.57,7.28418713]
[1734352587226,2.3201,215.58,215.57,7.28418713]
[1734352588728,2.3201,215.58,215.52,1.0]
[1734352588729,2.3203,215.56,215.55,7.28418713]
[1734352588928,7.28418713,215.62,215.55,7.28418713]
[1734352589329,2.3202,215.58,215.55,7.28418713]
[1734352590329,7.28418713,215.63,215.55,7.28418713]
[1734352590522,2.3202,215.57,215.55,7.28418713]
[1734352595434,7.28418713,215.63,215.55,7.28418713]
[1734352595435,2.3203,215.56,215.55,7.28418713]
[1734352595634,7.28418713,215.63,215.55,7.28418713]
[1734352596839,2.3203,215.57,215.52,1.0]
[1734352597035,7.28418713,215.63,215.54,7.28418713]
[1734352597234,7.28418713,215.61,215.54,7.28418713]
[1734352597435,2.3204,215.56,215.54,7.28418713]
[1734352598033,2.3204,215.55,215.54,7.28418713]
[1734352598835,2.3199,215.6,215.54,7.28418713]
[1734352599036,7.28418713,215.62,215.56,7.28418713]
[1734352600441,2.3203,215.57,215.56,7.28418713]
[1734352601243,2.3204,215.56,215.54,7.28418713]
[1734352601444,7.28418713,215.62,215.54,7.28418713]
[1734352602243,9.70418713,215.62,215.54,7.28418713]
[1734352602542,2.3204,215.56,215.54,7.28418713]
[1734352602937,2.3204,215.55,215.54,7.28418713]
[1734352603133,7.28418713,215.6,215.52,8.28418713]
[1734352603338,7.28418713,215.58,215.53,5.02538922]
[1734352603534,2.3206,215.53,215.52,1.0]